bitfinex/quotes_BTCUSD_20250331
["timestamp","ask_amount","ask_price","bid_price","bid_amount"]
[1743433194884,0.4134,83606.0,83596.0,0.31732386]
[1743433195089,0.4134,83606.0,83597.0,0.00170633]
[1743433195265,0.000337,83607.0,83606.0,0.25375785]
[1743433195495,0.000337,83607.0,83606.0,2.81032895]
[1743433195708,0.000337,83607.0,83606.0,3.21032895]
[1743433195911,0.000337,83607.0,83606.0,3.21532895]
[1743433197518,0.000337,83607.0,83606.0,3.21032895]
[1743433198862,0.000337,83607.0,83606.0,3.21632895]
[1743433200259,0.000337,83607.0,83606.0,3.41072895]
[1743433200459,9e-08,83610.0,83609.0,0.332868]
[1743433200660,9e-08,83610.0,83609.0,0.49501271]
[1743433201074,9e-08,83610.0,83609.0,0.49001271]
[1743433201249,9e-08,83610.0,83609.0,1.08969271]
[1743433201450,0.0003376,83669.0,83609.0,1.08969271]
[1743433201451,0.4134,83648.0,83647.0,0.251055]
[1743433201712,0.43487628,83648.0,83647.0,0.31728386]
[1743433201870,0.43501618,83648.0,83647.0,0.58287971]
[1743433202074,0.43501618,83648.0,83647.0,0.12260386]
[1743433202250,0.43501618,83648.0,83643.0,0.62092]
[1743433202454,0.43501618,83648.0,83644.0,0.58455108]
[1743433202455,0.02161618,83648.0,83644.0,0.58455108]
[1743433202775,0.02161618,83648.0,83644.0,0.31724386]
[1743433203035,0.02161618,83648.0,83647.0,0.006]
[1743433203210,0.02161618,83648.0,83647.0,0.39419971]
[1743433203635,0.0001399,83648.0,83647.0,0.39419971]
[1743433204248,0.0001399,83648.0,83647.0,0.47419971]
[1743433204747,0.0001399,83648.0,83647.0,0.89919971]
[1743433205120,0.0001399,83648.0,83647.0,0.90519971]
[1743433205309,0.0001399,83648.0,83647.0,0.91119971]
[1743433205711,0.0001399,83648.0,83647.0,0.89919971]
[1743433205950,0.0001399,83648.0,83647.0,0.90519971]
[1743433206795,0.0001399,83648.0,83647.0,0.90998871]
[1743433207164,0.0001399,83648.0,83647.0,0.96528871]
[1743433207165,9e-07,83648.0,83647.0,0.96528871]
[1743433207952,9e-07,83648.0,83647.0,1.13484871]
[1743433208173,9e-07,83648.0,83647.0,1.12284871]
[1743433208395,9e-07,83648.0,83647.0,1.14784871]
[1743433208595,9e-07,83648.0,83647.0,1.15384871]
[1743433208794,9e-07,83648.0,83647.0,1.15984871]
[1743433208995,0.0003374,83655.0,83648.0,0.05649485]
[1743433208996,9e-07,83649.0,83648.0,0.05649485]
[1743433209253,7.6e-07,83649.0,83648.0,1.39206216]
[1743433209469,7.6e-07,83649.0,83648.0,1.3903615]
[1743433209645,7.6e-07,83649.0,83648.0,1.7903615]
[1743433209894,7.6e-07,83649.0,83648.0,1.44932065]
[1743433210129,7.6e-07,83649.0,83648.0,2.26948065]
[1743433210355,7.6e-07,83649.0,83648.0,2.2840215]
[1743433210544,7.6e-07,83649.0,83648.0,2.4895015]
[1743433210735,7.6e-07,83649.0,83648.0,2.6840215]
[1743433211114,7.6e-07,83649.0,83648.0,2.6900215]
[1743433211705,7.6e-07,83649.0,83648.0,2.6960215]
[1743433213046,1.6e-07,83655.0,83654.0,0.281034]
[1743433213211,3.6e-07,83669.0,83668.0,0.29553285]
[1743433213443,3.6e-07,83669.0,83668.0,3.15592395]
[1743433213841,3.6e-07,83669.0,83668.0,3.55592395]
[1743433214642,3.6e-07,83669.0,83668.0,3.56192395]
[1743433215058,3.6e-07,83675.0,83674.0,0.05649185]
[1743433215258,0.4134,83723.0,83690.0,0.005]
[1743433215435,0.4134,83723.0,83690.0,3.73625479]
[1743433215620,0.00047703,83691.0,83690.0,4.13455695]
[1743433215819,0.00047703,83691.0,83690.0,3.85555695]
[1743433216053,0.00047703,83691.0,83690.0,2.95915195]
[1743433216255,0.00047703,83691.0,83690.0,2.1632875]
[1743433216683,0.41387703,83691.0,83690.0,1.21126279]
[1743433216857,0.41387703,83691.0,83690.0,0.1944]
[1743433217500,0.41387703,83691.0,83690.0,1.41166279]
[1743433217646,0.41387703,83691.0,83690.0,0.2004]
[1743433217978,0.41387703,83691.0,83690.0,1.53422665]
[1743433218216,0.41387703,83691.0,83690.0,1.5487675]
[1743433218398,0.00047703,83691.0,83690.0,1.7996925]
[1743433218597,0.4134,83721.0,83692.0,0.29545985]
[1743433218816,0.314074,83738.0,83737.0,0.011942]
[1743433219016,0.00916213,83752.0,83738.0,0.02648285]
[1743433219158,0.314074,83759.0,83738.0,0.02648285]
[1743433219159,0.00246619,83739.0,83738.0,0.15078235]
[1743433219353,0.00246619,83739.0,83738.0,0.13714471]
[1743433219802,0.00246619,83739.0,83738.0,0.19436]
[1743433220221,0.01152603,83739.0,83738.0,0.19436]
[1743433220422,0.00246619,83739.0,83738.0,0.19436]
[1743433221303,0.00246619,83739.0,83738.0,0.20036]
[1743433221630,0.31654019,83739.0,83738.0,0.20036]
[1743433221831,0.31654019,83739.0,83737.0,0.6192]
[1743433222546,0.31654019,83739.0,83726.0,0.19428]
[1743433222547,0.31654019,83739.0,83738.0,0.006]
[1743433222948,0.32535687,83739.0,83738.0,0.006]
[1743433223164,0.32535687,83739.0,83738.0,0.012]
[1743433223526,0.32535687,83739.0,83738.0,0.006]
[1743433223933,0.32535687,83739.0,83738.0,0.012]
[1743433224459,0.32535687,83739.0,83738.0,0.006]
[1743433224678,0.00246619,83739.0,83738.0,0.15508671]
[1743433224878,0.00246619,83739.0,83738.0,0.16278266]
[1743433225428,0.00246619,83739.0,83738.0,1.77852711]
[1743433225584,0.00246619,83739.0,83738.0,1.77083116]
[1743433225783,0.00246619,83739.0,83738.0,1.76483116]
[1743433226006,0.00246619,83739.0,83738.0,1.76583116]
[1743433226225,0.00346619,83739.0,83738.0,1.76583116]
[1743433226583,0.00346619,83739.0,83738.0,1.75388916]
[1743433226788,0.00346619,83739.0,83738.0,1.76583116]
[1743433227234,0.00246619,83739.0,83738.0,1.75983116]
[1743433227607,0.00346619,83739.0,83738.0,1.77083116]
[1743433227835,0.00346619,83739.0,83738.0,1.76483116]
[1743433228356,0.00346619,83739.0,83738.0,1.77083116]
[1743433228730,0.00246619,83739.0,83738.0,1.77083116]
[1743433228943,0.00246619,83739.0,83738.0,1.76483116]
[1743433229316,0.00346619,83739.0,83738.0,1.76183116]
[1743433229696,0.00246619,83739.0,83738.0,1.75983116]
[1743433230051,0.00246619,83739.0,83738.0,0.33070586]
[1743433230052,0.00346619,83739.0,83738.0,0.33070586]
[1743433230496,0.00246619,83739.0,83738.0,0.33470586]
[1743433230699,0.00246619,83739.0,83738.0,0.32870586]
[1743433231159,0.00246619,83739.0,83738.0,0.34924671]
[1743433231464,0.00246619,83739.0,83738.0,0.12860386]
[1743433231627,0.00346619,83739.0,83738.0,0.008]
[1743433231810,0.32669661,83739.0,83738.0,0.008]
[1743433232011,0.31754019,83739.0,83738.0,0.008]
[1743433232332,0.32685953,83739.0,83738.0,0.008]
[1743433232527,0.32685953,83739.0,83738.0,0.002]
[1743433233338,0.32685953,83739.0,83712.0,0.4]
[1743433233339,0.32585953,83739.0,83712.0,0.4]
[1743433233544,0.29464981,83722.0,83713.0,0.12430187]
[1743433233745,0.314074,83721.0,83713.0,0.12260386]
[1743433233947,0.314074,83721.0,83702.0,0.238941]
[1743433234146,0.314074,83721.0,83687.0,0.61992]
[1743433234147,0.29464981,83712.0,83703.0,0.52260386]
[1743433234721,0.68462381,83720.0,83703.0,0.52260386]
[1743433234950,0.314074,83720.0,83713.0,0.006]
[1743433235207,0.314074,83720.0,83713.0,0.12860386]
[1743433235541,0.3145399,83720.0,83715.0,0.011945]
[1743433235743,0.3145399,83720.0,83719.0,0.238894]
[1743433235948,0.0004659,83720.0,83719.0,0.38968051]
[1743433236222,0.0004659,83720.0,83719.0,0.58214271]
[1743433236423,0.0004659,83720.0,83719.0,1.20714271]
[1743433237174,0.0014659,83720.0,83719.0,1.20614271]
[1743433237391,0.0014659,83720.0,83719.0,1.20114271]
[1743433237594,0.0004659,83720.0,83719.0,1.20114271]
[1743433237775,0.0004659,83720.0,83719.0,0.95130471]
[1743433237972,0.0004659,83720.0,83719.0,0.97124871]
[1743433237973,0.0024659,83720.0,83719.0,0.97124871]
[1743433238820,0.0024659,83720.0,83719.0,1.37124871]
[1743433239694,9e-07,83720.0,83719.0,1.37124871]
[1743433240718,0.0491,83728.0,83712.0,1.21126279]
[1743433240919,0.0491,83728.0,83714.0,0.238908]
[1743433241147,0.001,83720.0,83719.0,0.009]
[1743433241435,0.001,83720.0,83719.0,0.39868053]
[1743433241621,0.314074,83738.0,83737.0,0.011942]
[1743433241959,0.47854358,83750.0,83738.0,0.25238085]
[1743433242169,0.314074,83759.0,83738.0,0.38692671]
[1743433243080,0.02172741,83763.0,83738.0,0.51692671]
[1743433243081,9e-07,83739.0,83738.0,0.51692671]
[1743433243247,9e-07,83739.0,83738.0,0.70041482]
[1743433243454,0.314074,83781.0,83738.0,0.70041482]
[1743433243455,0.314074,83781.0,83768.0,0.250691]
[1743433243620,0.00213966,83769.0,83768.0,4.02288295]
[1743433244439,0.00213966,83769.0,83768.0,4.02188295]
[1743433244639,0.00213966,83769.0,83768.0,4.02788295]
[1743433245250,0.00213966,83769.0,83768.0,3.77919195]
[1743433245473,0.00213966,83769.0,83768.0,1.7484075]
[1743433245890,0.00213966,83769.0,83768.0,1.3484075]
[1743433246379,0.00213966,83769.0,83768.0,1.33386665]
[1743433246785,0.00213966,83769.0,83768.0,1.33986665]
[1743433246987,0.31621366,83769.0,83768.0,0.012]
[1743433247145,0.31621366,83769.0,83746.0,0.01194]
[1743433247146,0.37063072,83769.0,83746.0,0.01194]
[1743433247351,0.47854358,83760.0,83747.0,0.12429911]
[1743433247545,0.47854358,83760.0,83747.0,0.12260386]
[1743433247831,0.314074,83768.0,83753.0,0.011939]
[1743433248022,0.314074,83768.0,83754.0,0.13714471]
[1743433248206,0.314074,83768.0,83754.0,0.37593771]
[1743433248348,0.314074,83768.0,83754.0,0.13714471]
[1743433248763,0.001,83760.0,83754.0,0.13714471]
[1743433249654,0.315074,83760.0,83747.0,0.011]
[1743433249827,0.314074,83759.0,83748.0,0.12260386]
[1743433250056,0.314074,83759.0,83748.0,0.13454386]
[1743433250206,0.314074,83759.0,83756.0,0.238787]
[1743433250418,0.314074,83759.0,83753.0,0.01454085]
[1743433250419,0.314074,83759.0,83757.0,0.12260386]
[1743433251247,0.315074,83759.0,83757.0,0.12260386]
[1743433251649,0.314074,83759.0,83757.0,0.12260386]
[1743433251977,0.315074,83759.0,83757.0,0.12360386]
[1743433252178,0.316074,83759.0,83757.0,0.36238786]
[1743433252387,0.316074,83759.0,83758.0,0.011939]
[1743433252596,0.002,83759.0,83758.0,0.14908371]
[1743433252773,0.002,83759.0,83758.0,1.3603465]
[1743433253584,0.001,83759.0,83758.0,1.3603465]
[1743433253785,0.314074,83768.0,83767.0,0.011937]
[1743433253968,0.314074,83768.0,83767.0,0.37229786]
[1743433254172,0.00213966,83769.0,83768.0,0.011937]
[1743433254366,0.00213966,83769.0,83768.0,0.14808171]
[1743433254888,0.00213966,83769.0,83768.0,0.14977545]
[1743433255063,0.00213966,83769.0,83768.0,0.14777545]
[1743433255409,0.00213966,83769.0,83768.0,0.12260386]
[1743433255612,0.00213966,83769.0,83768.0,0.12460386]
[1743433255820,0.00413966,83769.0,83768.0,0.52629808]
[1743433255966,0.00413966,83769.0,83768.0,0.52460386]
[1743433256196,0.00413966,83769.0,83768.0,0.55108171]
[1743433256197,0.00430776,83769.0,83768.0,0.55108171]
[1743433256402,0.00430776,83769.0,83768.0,0.78983571]
[1743433257502,0.00430776,83769.0,83768.0,0.86533571]
[1743433257710,0.00430776,83769.0,83768.0,0.78983571]
[1743433258115,7.6e-07,83769.0,83768.0,0.79483571]
[1743433258336,7.6e-07,83769.0,83768.0,0.81983571]
[1743433258523,7.6e-07,83769.0,83768.0,0.78783571]
[1743433258770,0.00100076,83769.0,83768.0,0.98579571]
[1743433258969,0.00200076,83769.0,83768.0,0.99079571]
[1743433259124,0.00200076,83769.0,83768.0,0.72556386]
[1743433259294,0.00200076,83769.0,83768.0,0.32556386]
[1743433259995,0.00200076,83769.0,83768.0,0.34010471]
[1743433260220,7.6e-07,83769.0,83768.0,0.13714471]
[1743433260420,7.6e-07,83769.0,83768.0,0.14614471]
[1743433260421,0.00200076,83769.0,83768.0,0.14614471]
[1743433261400,0.00200076,83769.0,83768.0,0.39852973]
[1743433261600,0.00100076,83769.0,83768.0,0.39283571]
[1743433261719,7.6e-07,83769.0,83768.0,0.38783571]
[1743433261919,0.00100076,83769.0,83768.0,0.39283571]
[1743433262149,0.00200076,83769.0,83768.0,0.39783571]
[1743433262559,0.00200076,83769.0,83768.0,0.50513571]
[1743433263168,0.00200076,83769.0,83768.0,0.57721486]
[1743433263370,0.00100076,83769.0,83768.0,0.97221486]
[1743433263569,0.00100076,83769.0,83768.0,0.98675571]
[1743433264206,0.00200076,83769.0,83768.0,0.99075571]
[1743433264608,0.000337,83777.0,83776.0,0.250667]
[1743433264776,0.000337,83777.0,83776.0,2.80981895]
[1743433264968,0.000337,83777.0,83776.0,2.80881895]
[1743433265504,0.000337,83777.0,83776.0,3.20881895]
[1743433266773,0.001337,83777.0,83776.0,3.21381895]
[1743433266946,0.002337,83777.0,83776.0,3.21881895]
[1743433268167,0.314074,83798.0,83786.0,0.238701]
[1743433268370,0.00013964,83796.0,83787.0,0.12260386]
[1743433268790,0.00013964,83796.0,83795.0,0.238677]
[1743433268960,0.00013964,83796.0,83795.0,1.60019145]
[1743433269153,0.00013964,83796.0,83795.0,1.59849916]
[1743433269337,0.00013964,83796.0,83795.0,2.80976195]
[1743433269711,0.01927839,83796.0,83795.0,2.80976195]
[1743433270396,0.00013964,83796.0,83795.0,2.80976195]
[1743433270571,0.00213964,83796.0,83795.0,2.81976195]
[1743433270978,0.00113964,83796.0,83795.0,2.81476195]
[1743433271379,0.00213964,83796.0,83795.0,2.81976195]
[1743433271939,0.00213964,83796.0,83795.0,3.21976195]
[1743433273574,0.00213964,83796.0,83795.0,3.41360195]
[1743433274428,0.00213964,83796.0,83795.0,3.41860195]
[1743433276043,0.00213964,83796.0,83795.0,3.41360195]
[1743433276207,0.00213964,83796.0,83795.0,3.2052211]
[1743433276416,0.00213964,83796.0,83795.0,3.3870881]
[1743433276615,0.00213964,83796.0,83795.0,3.3990211]
[1743433276811,0.00213964,83796.0,83795.0,3.2052211]
[1743433277219,0.00213964,83796.0,83795.0,3.41356195]
[1743433278081,0.00213964,83796.0,83795.0,3.21976195]
[1743433278282,0.00213964,83796.0,83795.0,3.41356195]
[1743433278657,0.00213964,83796.0,83795.0,3.1484111]
[1743433279085,0.00213964,83796.0,83795.0,3.1483711]
[1743433279288,0.00213964,83796.0,83795.0,3.16291195]
[1743433279509,0.00213964,83796.0,83795.0,0.53260386]
[1743433279724,0.00213964,83796.0,83795.0,0.01]
[1743433280232,0.00230824,83796.0,83795.0,0.01]
[1743433280405,0.00230824,83796.0,83795.0,0.13260386]
[1743433280679,0.00230824,83796.0,83795.0,0.14714471]
[1743433280873,0.00230824,83796.0,83795.0,0.53260386]
[1743433281231,0.00230824,83796.0,83795.0,0.79775471]
[1743433281407,0.00230824,83796.0,83795.0,0.54714471]
[1743433281826,0.00230824,83796.0,83795.0,0.72636386]
[1743433282053,0.00230824,83796.0,83795.0,0.53260386]
[1743433284169,0.00230824,83796.0,83795.0,0.79775471]
[1743433284383,0.00230824,83796.0,83795.0,2.0090175]
[1743433285164,0.00230824,83796.0,83795.0,3.41352195]
[1743433285896,0.00130824,83796.0,83795.0,3.40852195]
[1743433286045,0.00130824,83796.0,83795.0,3.41352195]
[1743433286245,0.00130824,83796.0,83795.0,3.40852195]
[1743433286458,0.00130824,83796.0,83795.0,3.41352195]
[1743433286665,0.00230824,83796.0,83795.0,3.41352195]
[1743433286982,0.00130824,83796.0,83795.0,3.40852195]
[1743433287807,0.00230824,83796.0,83795.0,3.41352195]
[1743433288011,2.4e-07,83796.0,83795.0,3.41852195]
[1743433288242,2.4e-07,83796.0,83795.0,3.45043955]
[1743433288449,2.4e-07,83796.0,83795.0,3.44543955]
[1743433288778,2.4e-07,83796.0,83795.0,3.40852195]
[1743433288983,0.002,83799.0,83798.0,0.250602]
[1743433289206,0.002,83799.0,83798.0,0.58146671]
[1743433289723,0.002,83799.0,83798.0,0.98146671]
[1743433290526,0.002,83799.0,83798.0,0.99346671]
[1743433291506,0.002,83799.0,83798.0,1.03041105]
[1743433292292,0.002,83799.0,83798.0,0.99346671]
[1743433292431,0.002,83799.0,83798.0,1.03040327]
[1743433293236,0.002,83799.0,83798.0,0.99346671]
[1743433294084,0.002,83799.0,83798.0,0.77327286]
[1743433294291,0.002,83799.0,83798.0,0.97888586]
[1743433294488,0.002,83799.0,83798.0,0.72828386]
[1743433295353,0.002,83799.0,83798.0,0.74282471]
[1743433295532,0.002,83799.0,83798.0,0.54914471]
[1743433295859,0.002,83799.0,83798.0,0.98149371]
[1743433296180,0.002,83799.0,83798.0,0.74282471]
[1743433296425,0.0021685,83799.0,83798.0,0.73682471]
[1743433296789,0.0021685,83799.0,83798.0,0.74282471]
[1743433297230,0.0021685,83799.0,83798.0,0.98149371]
[1743433297429,0.0021685,83799.0,83798.0,0.73682471]
[1743433297638,0.0021685,83799.0,83798.0,0.97549371]
[1743433297834,0.0021685,83799.0,83798.0,0.98149371]
[1743433299383,0.0021685,83799.0,83798.0,0.99342671]
[1743433300423,0.0021685,83799.0,83798.0,1.03039348]
[1743433300618,0.0021685,83799.0,83798.0,0.99342671]
[1743433301254,0.0021685,83799.0,83798.0,1.03039806]
[1743433301464,0.0021685,83799.0,83798.0,0.99342671]
[1743433301682,0.0021685,83799.0,83798.0,1.03040855]
[1743433302867,0.0021685,83799.0,83798.0,0.83672855]
[1743433303075,0.0021685,83799.0,83798.0,1.03036855]
[1743433306186,0.0021685,83799.0,83798.0,1.0158277]
[1743433306401,0.0021685,83799.0,83798.0,1.03036855]
[1743433307206,0.0021685,83799.0,83798.0,0.77976655]
[1743433307410,0.0021685,83799.0,83798.0,0.99338671]
[1743433308256,0.0021685,83799.0,83798.0,1.03040383]
[1743433310932,0.0021685,83799.0,83798.0,1.03730383]
[1743433314423,0.0021685,83799.0,83798.0,1.03130383]
[1743433314983,0.0021685,83799.0,83798.0,1.03730383]
[1743433315337,0.0021685,83799.0,83798.0,1.03130383]
[1743433315540,0.0021685,83799.0,83798.0,1.02530383]
[1743433315737,0.0021685,83799.0,83798.0,1.03130383]
[1743433315937,0.0021685,83799.0,83798.0,1.03730383]
[1743433316109,0.0021685,83799.0,83798.0,1.03130383]
[1743433316310,0.0021685,83799.0,83798.0,0.83766383]
[1743433316580,0.0021685,83799.0,83798.0,1.03722383]
[1743433318181,0.0021685,83799.0,83798.0,1.03122383]
[1743433318946,0.0021685,83799.0,83798.0,1.03722383]
[1743433321245,0.0521685,83799.0,83798.0,1.03722383]
[1743433321864,8e-05,83812.0,83811.0,0.26510385]
[1743433322091,8e-05,83812.0,83811.0,2.80971495]
[1743433322291,8e-05,83812.0,83811.0,2.55915195]
[1743433322785,8e-05,83812.0,83811.0,2.9446111]
[1743433322989,8e-05,83812.0,83811.0,3.1381311]
[1743433323149,8e-05,83812.0,83811.0,3.15867195]
[1743433323345,0.30008,83812.0,83811.0,1.73334831]
[1743433323547,0.30008,83812.0,83796.0,0.000337]
[1743433323548,0.0455,83811.0,83802.0,1.21074445]
[1743433323744,0.3,83809.0,83798.0,0.0069]
[1743433324021,0.3,83809.0,83799.0,0.12260386]
[1743433324686,0.3,83809.0,83800.0,0.00169244]
[1743433324887,0.3,83809.0,83802.0,0.006]
[1743433325083,0.3,83809.0,83803.0,0.12260386]
[1743433325315,0.3455,83811.0,83803.0,0.12260386]
[1743433325716,0.3455,83811.0,83798.0,0.4069]
[1743433325717,0.238651,83805.0,83798.0,0.4069]
[1743433325920,0.3,83798.0,83776.0,0.19352]
[1743433326119,0.3,83785.0,83777.0,0.12260386]
[1743433326460,0.3,83785.0,83778.0,0.4]
[1743433326636,0.3,83785.0,83779.0,0.12260386]
[1743433327177,0.3,83789.0,83780.0,0.4]
[1743433327542,0.0817,83781.0,83773.0,0.10643821]
[1743433327741,0.3,83779.0,83773.0,0.10643821]
[1743433328509,0.3,83779.0,83768.0,0.0003362]
[1743433328711,0.3,83779.0,83777.0,0.006]
[1743433329133,0.3,83779.0,83769.0,0.12260386]
[1743433329379,0.3,83779.0,83768.0,0.0003362]
[1743433329380,0.011936,83776.0,83768.0,0.0003362]
[1743433329511,0.3462,83774.0,83773.0,0.012]
[1743433329711,0.3462,83774.0,83773.0,0.006]
[1743433329942,0.3,83764.0,83758.0,0.0003362]
[1743433330283,0.358539,83759.0,83758.0,0.0003362]
[1743433330486,0.358539,83759.0,83753.0,0.10643821]
[1743433330487,0.629733,83754.0,83753.0,0.10643821]
[1743433330711,0.3,83736.0,83728.0,0.4]
[1743433330856,0.3498,83734.0,83721.0,0.62148]
[1743433331056,0.3,83730.0,83722.0,0.12260386]
[1743433331450,0.3,83730.0,83728.0,0.00013964]
[1743433331697,0.3,83730.0,83729.0,0.12260386]
[1743433332070,0.32410817,83730.0,83729.0,0.12260386]
[1743433332814,0.02410817,83730.0,83729.0,0.37600971]
[1743433332998,0.0467,83748.0,83747.0,0.250754]
[1743433333174,0.314074,83754.0,83752.0,0.2388]
[1743433333376,0.37641131,83770.0,83760.0,0.250715]
[1743433333555,0.29411131,83770.0,83766.0,0.238759]
[1743433333755,0.31838385,83770.0,83767.0,0.12260386]
[1743433333936,0.31838385,83770.0,83767.0,0.12160386]
[1743433334143,0.3,83769.0,83767.0,0.12160386]
[1743433334345,0.31838385,83770.0,83767.0,0.12160386]
[1743433334591,0.3,83769.0,83767.0,0.12160386]
[1743433334793,0.02427254,83770.0,83769.0,0.011937]
[1743433334993,0.0458,83790.0,83769.0,0.011937]
[1743433334994,0.33991131,83790.0,83783.0,0.01454085]
[1743433335149,0.33991131,83790.0,83784.0,0.12260386]
[1743433335361,0.3,83789.0,83784.0,0.12260386]
[1743433335553,0.36403175,83790.0,83784.0,0.12260386]
[1743433335795,0.3,83789.0,83784.0,0.12160386]
[1743433335969,0.36403175,83790.0,83784.0,0.12160386]
[1743433336397,0.36403175,83790.0,83785.0,0.4]
[1743433336398,0.3,83789.0,83785.0,0.4]
[1743433336729,0.06992044,83790.0,83789.0,0.250628]
[1743433336930,0.06992044,83790.0,83785.0,0.4]
[1743433337133,0.25064,83786.0,83767.0,1.21288409]
[1743433337342,0.25064,83786.0,83767.0,0.00013964]
[1743433337343,0.3,83776.0,83767.0,0.00013964]
[1743433337549,0.0772,83775.0,83767.0,0.00013964]
[1743433337754,0.0772,83775.0,83767.0,0.40013964]
[1743433337915,0.0772,83775.0,83767.0,0.00013964]
[1743433338483,0.3,83773.0,83767.0,0.00513964]
[1743433338683,0.3,83771.0,83767.0,0.00513964]
[1743433338835,0.3,83771.0,83767.0,0.00613964]
[1743433339663,0.3,83771.0,83767.0,0.00013964]
[1743433340047,0.3,83771.0,83767.0,0.00613964]
[1743433340247,0.3,83771.0,83767.0,0.01013964]
[1743433340248,0.30893046,83771.0,83767.0,0.01013964]
[1743433340813,0.30893046,83771.0,83767.0,0.00613964]
[1743433341216,0.30993046,83771.0,83767.0,0.01113964]
[1743433341417,0.301,83771.0,83770.0,0.250685]
[1743433341622,0.301,83771.0,83770.0,0.12260386]
[1743433341863,0.001,83771.0,83770.0,0.38782971]
[1743433342485,0.4134,83785.0,83784.0,0.26518485]
[1743433342689,0.4134,83805.0,83798.0,0.250602]
[1743433342901,0.4134,83805.0,83798.0,2.80975395]
[1743433343115,0.4134,83805.0,83798.0,2.80955395]
[1743433343315,0.02476906,83799.0,83798.0,1.21074445]
[1743433343519,0.02476906,83799.0,83789.0,2.42200724]
[1743433343718,0.02476906,83799.0,83790.0,0.12260386]
[1743433343859,0.02476906,83799.0,83798.0,0.02198858]
[1743433344293,0.02476906,83799.0,83798.0,0.02098858]
[1743433345119,0.02576906,83799.0,83798.0,0.005]
[1743433345480,0.02576906,83799.0,83798.0,0.011]
[1743433345635,0.73916906,83799.0,83798.0,0.011]
[1743433346223,0.73916906,83799.0,83798.0,0.14553686]
[1743433346422,0.0011685,83799.0,83798.0,0.07753535]
[1743433346673,0.0011685,83799.0,83798.0,0.08946835]
[1743433347420,0.0011685,83799.0,83798.0,0.09116005]
[1743433347421,0.0001685,83799.0,83798.0,0.09116005]
[1743433347623,8e-05,83812.0,83799.0,0.01454085]
[1743433347823,0.26958737,83813.0,83812.0,0.02647185]
[1743433348061,0.0003003,83870.0,83828.0,0.011929]
[1743433348272,0.0003003,83870.0,83850.0,0.250446]
[1743433348473,0.0003003,83870.0,83852.0,0.011925]
[1743433348671,0.0003003,83870.0,83852.0,0.736925]
[1743433348889,8.4e-07,83853.0,83852.0,0.87406971]
[1743433349019,8.4e-07,83853.0,83852.0,0.83452886]
[1743433349222,8.4e-07,83853.0,83852.0,0.54906971]
[1743433349455,0.0003003,83870.0,83854.0,0.3]
[1743433349657,0.0003003,83870.0,83860.0,0.26340396]
[1743433349658,2e-07,83861.0,83860.0,0.26340396]
[1743433349859,2e-07,83861.0,83860.0,3.10437421]
[1743433350061,0.00013983,83861.0,83860.0,3.50437421]
[1743433350550,0.00013983,83861.0,83860.0,3.73081421]
[1743433350812,0.00013983,83861.0,83860.0,3.70581421]
[1743433351040,0.00013983,83861.0,83860.0,3.42295506]
[1743433351270,0.00013983,83861.0,83860.0,3.35095623]
[1743433351663,0.00013983,83861.0,83860.0,3.33641538]
[1743433351878,0.00013983,83861.0,83860.0,3.63641538]
[1743433352093,0.00213983,83861.0,83860.0,3.11137538]
[1743433352297,0.00213983,83861.0,83860.0,2.72391623]
[1743433352697,0.00213983,83861.0,83860.0,2.90285153]
[1743433352881,0.00213983,83861.0,83860.0,2.91739238]
[1743433353082,0.00213983,83861.0,83860.0,2.66505649]
[1743433353595,0.00213983,83861.0,83860.0,3.05484795]
[1743433353801,0.00213983,83861.0,83860.0,3.04292395]
[1743433354001,0.00013983,83861.0,83860.0,3.05284795]
[1743433354251,0.00113983,83861.0,83860.0,3.45684795]
[1743433354448,0.00213983,83861.0,83860.0,3.45984795]
[1743433354645,0.00113983,83861.0,83860.0,3.45584795]
[1743433354845,0.00013983,83861.0,83860.0,3.45284795]
[1743433355049,0.00213983,83861.0,83860.0,3.46084795]
[1743433355294,7.3e-07,83873.0,83872.0,0.25038]
[1743433355505,0.36313796,83907.0,83906.0,0.250279]
[1743433355715,0.0012254,83908.0,83907.0,0.011917]
[1743433355890,0.0012254,83908.0,83907.0,0.53452086]
[1743433356087,0.00136495,83908.0,83907.0,0.52260386]
[1743433356469,0.02050815,83908.0,83907.0,0.52260386]
[1743433356809,0.00497932,83919.0,83907.0,0.02169583]
[1743433357051,0.3293332,83919.0,83907.0,0.02169583]
[1743433357201,0.02635388,83919.0,83909.0,0.23835]
[1743433357405,0.02635388,83919.0,83911.0,0.238347]
[1743433357628,0.32635388,83919.0,83912.0,0.12160386]
[1743433358009,0.02635388,83919.0,83918.0,0.36093086]
[1743433358226,0.00557634,83924.0,83918.0,1.82966965]
[1743433358428,0.00557634,83924.0,83923.0,0.24867678]
[1743433358627,0.00557634,83924.0,83923.0,0.3108941]
[1743433358827,0.00557634,83924.0,83923.0,0.28425169]
[1743433359033,0.00557634,83924.0,83923.0,0.68418636]
[1743433359229,0.00048902,83945.0,83944.0,0.238254]
[1743433359428,0.36409216,83945.0,83944.0,1.44951679]
[1743433359877,0.38891151,83945.0,83944.0,1.58403265]
[1743433360268,0.38891151,83945.0,83944.0,1.57212065]
[1743433360441,0.38891151,83945.0,83944.0,1.33386665]
[1743433360649,0.68891151,83945.0,83944.0,1.21126279]
[1743433360842,0.3,83942.0,83935.0,1.21126279]
[1743433361671,0.3,83940.0,83926.0,1.21126279]
[1743433361893,0.3,83929.0,83926.0,1.21126279]
[1743433362463,0.3,83929.0,83916.0,1.21074445]
[1743433362464,0.3,83927.0,83916.0,2.42200724]
[1743433362677,0.3,83927.0,83916.0,1.21126279]
[1743433363625,0.00297906,83926.0,83907.0,1.21074445]
[1743433363820,0.3,83921.0,83906.0,1.21126279]
[1743433364026,0.47674796,83922.0,83906.0,1.21126279]
[1743433364027,0.3,83919.0,83906.0,1.33386665]
[1743433364515,0.36313796,83920.0,83906.0,1.33386665]
[1743433364909,0.83988592,83920.0,83912.0,0.005]
[1743433365344,0.83988592,83920.0,83906.0,1.33386665]
[1743433365552,0.001,83919.0,83907.0,0.12260386]
[1743433365708,0.35913796,83920.0,83907.0,0.12260386]
[1743433366473,0.35913796,83920.0,83909.0,0.011917]
[1743433366685,0.35913796,83920.0,83910.0,0.12260386]
[1743433367033,0.35913796,83920.0,83911.0,0.4]
[1743433367234,0.36013796,83920.0,83913.0,0.250257]
[1743433367431,0.36113796,83920.0,83914.0,0.12260386]
[1743433368042,0.36013796,83920.0,83914.0,0.12260386]
[1743433368239,0.36113796,83920.0,83915.0,0.238336]
[1743433368445,0.36213796,83920.0,83916.0,0.12260386]
[1743433368645,0.36013796,83920.0,83916.0,1.33334831]